Cogmind - Beta 11.1 @@@ ROGUE MODE // 2022.05.02 @ 20:59:09 Player: Red Box Result: Self-destructed Performance ------------- Evolutions (2) 1000 Regions Visited (5) 1000 Robots Destroyed (67) 335 Value Destroyed (1574) 1574 Prototype IDs (31) 620 Alien Tech Used (0) 0 Bonus (322) 322 TOTAL SCORE: 4851 Bonus ------- Follower Combat Kills 49 Aligned with FarCom 300 Friendly Fire -27 Cogmind --------- Core Integrity 432/550 Matter 300/300 Energy 265/265 System Corruption 0% Temperature Cool (0) Movement Rolling (145) Ox3 Location -8/Materials Parts ------- > --- POWER (1) -------- Improved Ion Engine > --- PROPULSION (2) --- Compact Wheel Compact Wheel > --- UTILITY (6) ------ Heat Sink Huge Storage Unit Improved Terrain Scanner Terrain Scan Processor Light Armor Plating Hacking Suite > --- WEAPON (2) ------- Minigun Heavy Mace > --- INVENTORY (25) --- Improved Ion Engine Improved Ion Engine Compact Wheel Compact Wheel Compact Wheel Armored Wheel Coolant Injector Huge Storage Unit Large Battery (200) Machine Analyzer Improved Terrain Scan Processor Advanced Targeting Computer Advanced Targeting Computer Light Armor Plating Heavy EM Shotgun Ion Cannon Guided Plasma Cannon Assault Cannon Bore Cannon Heavy Rocket Launcher Remote Datajack Proton Bomb Trap Proton Bomb Trap Peak State ------------ > --- POWER ------------ Improved Ion Engine > --- PROPULSION ------- Wheel Compact Wheel > --- UTILITY ---------- Improved Heat Sink Huge Storage Unit Improved Terrain Scanner Terrain Scan Processor Shield Generator Hacking Suite > --- WEAPON ----------- Light EM Pulse Cannon Bore Cannon > --- INVENTORY -------- Improved Ion Engine Improved Ion Engine Improved Ion Engine Compact Wheel Compact Wheel Compact Wheel Compact Wheel Armored Wheel Huge Storage Unit Large Battery Machine Analyzer Improved Terrain Scan Processor Advanced Targeting Computer Advanced Targeting Computer Light Armor Plating Heavy EM Shotgun Guided Plasma Cannon Minigun Missile Launcher Heavy Mace Proton Bomb Trap Proton Bomb Trap [Rating: 30] Favorites ----------- Power Improved Ion Engine Engine Improved Ion Engine Propulsion Wheel Treads Light Treads Wheel Wheel Utility Huge Storage Unit Device Improved Terrain Scanner Storage Huge Storage Unit Processor Terrain Scan Processor Hackware Hacking Suite Protection Light Armor Plating Weapon Light EM Pulse Cannon Energy Gun EM Pulse Gun Energy Cannon Light EM Pulse Cannon Ballistic Gun Assault Rifle Ballistic Cannon Bore Cannon Impact Weapon Heavy Mace Slashing Weapon Mining Claw Build | -11 -10 -10 -10 -9 -8 ------- Run | Scr Mat Min Exi Min Mat Slots Evolved 4 | . . . . . 4 Power . | . . . . . . Propulsion . | . . . . . . Utility 4 | . . . . . 4 Weapon . | . . . . . . Parts Attached 44 | 7 15 4 . 1 17 Power 4 | 1 1 . . . 2 Engine 4 | 1 1 . . . 2 Core . | . . . . . . Reactor . | . . . . . . Propulsion 8 | 2 2 1 . . 3 Treads 2 | 2 . . . . . Leg . | . . . . . . Wheel 6 | . 2 1 . . 3 Hover . | . . . . . . Flight . | . . . . . . Utility 14 | 2 3 2 . . 7 Device 6 | 1 1 1 . . 3 Storage 4 | 1 2 1 . . . Processor 1 | . . . . . 1 Hackware 1 | . . . . . 1 Protection 2 | . . . . . 2 Artifact . | . . . . . . Weapon 18 | 2 9 1 . 1 5 Energy Gun 2 | . . 1 . . 1 Energy Cannon 4 | . 2 . . 1 1 Ballistic Gun 7 | 2 4 . . . 1 Ballistic Cannon 1 | . . . . . 1 Launcher . | . . . . . . Special Weapon . | . . . . . . Impact Weapon 1 | . . . . . 1 Slashing Weapon 3 | . 3 . . . . Piercing Weapon . | . . . . . . Special Melee Weapon . | . . . . . . Unidentified Prototypes 1 | . . . . . 1 Parts Lost 16 | . 2 2 . 1 11 Power 2 | . . . . . 2 Propulsion 3 | . . . . . 3 Utility 4 | . . 1 . . 3 Weapon 7 | . 2 1 . 1 3 Highest Loss Streak 5 | . 2 2 . 1 5 To Critical Strikes . | . . . . . . Average Slot Usage (%) 98 | . 99 99 100 100 94 Engine 13 | . 14 14 14 14 8 Treads 10 | . 24 . . . . Wheel 16 | . 3 28 28 28 17 Device 14 | . 13 14 14 14 19 Storage 13 | . 14 14 14 14 9 Processor 1 | . . . . . 9 Hackware 1 | . . . . . 9 Energy Gun 4 | . . 4 14 14 3 Energy Cannon 10 | . 4 22 14 14 5 Ballistic Gun 9 | . 22 . . . 2 Naked Turns . | . . . . . . Heaviest Build 104 | 15 92 94 94 94 104 Greatest Support 40 | 40 40 20 20 20 32 Greatest Overweight (x) 9 | 1 2 4 4 4 9 Average Overweight (x) 2 | . 1 2 4 4 3 Largest Inventory Capacity 25 | 8 25 25 25 25 25 Average Capacity 22 | 7 21 20 25 25 25 Most Carried 25 | 8 20 24 25 25 23 Average Carried 19 | 4 15 20 24 24 19 Final Capacity 25 | 8 20 25 25 25 25 Final Carried 25 | 8 20 24 25 24 23 Class Distribution -------------------- 87% | Mutant 11% | Skirmisher Dominant Class ---------------- Mutant | -10/Materials Mutant | -10/Mines Mutant | -10/Exiles Mutant | -9/Mines Skirmisher | -8/Materials Resources | -11 -10 -10 -10 -9 -8 ----------- Run | Scr Mat Min Exi Min Mat Matter Collected 1302 | 306 438 75 . 10 473 Remotely . | . . . . . . Salvage Created 2293 | 92 577 290 . 193 1141 Parts 155 | 6 50 22 . 18 59 Haulers Intercepted 6 | . 2 . . . 4 Recyclers Shooed 1 | 1 . . . . . Parts Field Recycled . | . . . . . . Retrieved Matter . | . . . . . . Parts Self-Destructed . | . . . . . . Prevented . | . . . . . . Kills | -11 -10 -10 -10 -9 -8 ------- Run | Scr Mat Min Exi Min Mat Combat Hostiles Destroyed 45 | . 12 7 . 9 17 Guns 17 | . 12 1 . 2 2 Cannons 21 | . . 3 . 5 13 AOE 5 | . . 3 . 2 . Classes Destroyed 12 | 2 5 2 . . 3 Worker 4 | . . 1 . . 3 Builder 2 | . 1 . . . 1 Tunneler 1 | 1 . . . . . Hauler 6 | . 2 . . . 4 Recycler 1 | 1 . . . . . Mechanic 1 | . . 1 . . . Watcher 7 | . 3 . . . 4 Swarmer 17 | . 3 3 . 7 4 Grunt 21 | . 9 4 . 2 6 Brawler 1 | . . . . . 1 Duelist 2 | . . . . . 2 Sentry 4 | . . . . . 4 Best Kill Streak 10 | 2 4 5 . 4 10 Combat Bots Only 7 | . 4 3 . 4 7 Max Kills in Single Turn 2 | 1 2 2 . 2 2 Gunslinging 1 | . 1 . . . . Exploded 2 | . . 2 . 1 . Melee . | . . . . . . Uniques/NPCs Destroyed . | . . . . . . Combat | -11 -10 -10 -10 -9 -8 -------- Run | Scr Mat Min Exi Min Mat Damage Taken 2074 | . 572 361 . 201 940 Core 353 | . 84 118 . 33 118 Absorbed by Shields 62 | . . . . . 62 Regen/Repaired (Parts) 18 | . 18 . . . . Core Remaining (%) 53 | 100 . . . 6 . Volleys Fired 161 | 6 54 19 . 16 66 Largest 2 | 2 2 2 . 2 2 Hottest 113 | 40 46 112 . 96 113 Shots Fired 309 | 12 108 35 . 31 123 Gun 163 | 12 108 5 . 16 22 Cannon 146 | . . 30 . 15 101 Launcher . | . . . . . . Special . | . . . . . . Kinetic 173 | 12 108 . . . 53 Thermal . | . . . . . . Explosive . | . . . . . . Electromagnetic 136 | . . 35 . 31 70 Robot Hit Streak 16 | 5 16 4 . 5 14 Robot Miss Streak 5 | 2 4 5 . 3 4 Penetration Max 2 | . . . . . 2 Secondary Targets 1 | . 1 . . . . Max Gunslinging Chain 1 | . 1 . . . . Shots Hit Robots 197 | 8 76 18 . 15 80 Core Hits 93 | 3 31 12 . 10 37 Critical Kills 8 | . 1 . . . 7 Critical Parts Destroyed 11 | . . . . . 11 Critical Strikes 20 | . 1 . . . 19 Destroy 18 | . 1 . . . 17 Corrupt 1 | . . . . . 1 Smash 1 | . . . . . 1 Melee Attacks 15 | . 10 . . . 5 Impact 5 | . . . . . 5 Slashing 10 | . 10 . . . . Piercing . | . . . . . . Sneak Attacks 4 | . 2 . . . 2 Combat Hostiles . | . . . . . . Follow-up Attacks . | . . . . . . Damage Inflicted 4311 | 103 1084 612 . 396 2116 Guns 1445 | 103 994 16 . 73 259 Cannons 2211 | . . 343 . 203 1665 Explosions 373 | . . 253 . 120 . Melee 282 | . 90 . . . 192 Ramming . | . . . . . . Kinetic 1868 | 103 994 . . . 771 Thermal 373 | . . 253 . 120 . Explosive . | . . . . . . Electromagnetic 1788 | . . 359 . 276 1153 Impact 192 | . . . . . 192 Slashing 90 | . 90 . . . . Piercing . | . . . . . . Highest Corruption . | . . . . . . Average Corruption . | . . . . . . Corruption Purged . | . . . . . . Corruption Blocked . | . . . . . . Overload Shots . | . . . . . . Overflow Damage 110 | . 4 17 . . 89 Projectiles 35 | . . 17 . . 18 Explosions . | . . . . . . Melee 75 | . 4 . . . 71 Knockbacks 7 | . . . . . 7 Impact . | . . . . . . Kinetic 6 | . . . . . 6 Secondary 1 | . . . . . 1 Self-Inflicted Damage 49 | . . 11 . 38 . Shots 2 | . . 1 . 1 . Rammed . | . . . . . . Targets Rammed . | . . . . . . Kicked . | . . . . . . Crushed . | . . . . . . Highest Temperature 281 | . 8 281 . 11 42 Average Temperature 59 | . 2 116 . 8 12 Received Heat Transfer 741 | . 261 162 . . 318 Effects 1 | . . 1 . . . Energy Bleed 1 | . . 1 . . . Siege Activations . | . . . . . . Robots Corrupted 2 | . . . . . 2 Combat Hostiles 2 | . . . . . 2 Parts Fried 6 | . . 2 . 2 2 Impact Corruptions 2 | . . . . . 2 Robots Melted . | . . . . . . Combat Hostiles . | . . . . . . Parts Melted 1 | . . 1 . . . Heat Transferred 450 | . . 350 . 100 . Parts Sabotaged . | . . . . . . Parts Stolen . | . . . . . . Parts Stripped . | . . . . . . Power Chain Reactions 4 | . . 2 . 2 . Missiles Intercepted . | . . . . . . Alert | -11 -10 -10 -10 -9 -8 ------- Run | Scr Mat Min Exi Min Mat Peak Influence 398 | 10 142 171 . 115 398 Initial 44 | . 6 . . . 44 Average 84 | 3 41 56 . 45 254 Maximum Alert Level 1 | . . . . . 1 Low Security (%) 86 | 100 100 100 . 100 29 Level 1 13 | . . . . . 70 Level 2 . | . . . . . . Level 3 . | . . . . . . Level 4 . | . . . . . . Level 5 . | . . . . . . High Security . | . . . . . . Max Security . | . . . . . . Squads Dispatched 5 | . 1 1 . . 3 Investigation 3 | . 1 . . . 2 Extermination . | . . . . . . Reinforcement 1 | . . . . . 1 Assault 1 | . . 1 . . . Garrison . | . . . . . . Intercept . | . . . . . . Searches Triggered . | . . . . . . Construction Impeded 1 | . . . . . 1 Haulers Reinforced . | . . . . . . Active Scanning Responses . | . . . . . . Cargo Convoy Interrupts . | . . . . . . Stealth | -11 -10 -10 -10 -9 -8 --------- Run | Scr Mat Min Exi Min Mat Distress Signals 2 | . . . . . 2 Communications Jammed . | . . . . . . Distress Signals . | . . . . . . Times Spotted 71 | . 17 16 . 8 30 Peak Tracking Total 5 | . 5 4 . 4 5 Tactical Retreats 8 | . 1 1 . . 6 Traps | -11 -10 -10 -10 -9 -8 ------- Run | Scr Mat Min Exi Min Mat Traps Triggered 2 | . 1 . . . 1 Indirectly . | . . . . . . Trap Hack Attempts . | . . . . . . Triggered . | . . . . . . Disarmed . | . . . . . . Reprogrammed . | . . . . . . Reused 1 | . . 1 . . . Traps Extracted . | . . . . . . Installed 1 | . . 1 . . . Triggered 1 | . . 1 . . . Most Traps Carried 4 | . . 4 4 4 2 Machines | -11 -10 -10 -10 -9 -8 ---------- Run | Scr Mat Min Exi Min Mat Machines Disabled 5 | . . . . 4 1 Max in Single Turn 1 | . . . . 1 1 Machines Sabotaged . | . . . . . . Garrisons Compromised . | . . . . . . Overloaded Fab Kills . | . . . . . . Hacking | -11 -10 -10 -10 -9 -8 --------- Run | Scr Mat Min Exi Min Mat Machines Accessed 20 | . 11 . 2 1 6 Terminals 14 | . 8 . . 1 5 Fabricators . | . . . . . . Repair Stations 1 | . 1 . . . . Recycling Units 3 | . 2 . . . 1 Scanalyzers . | . . . . . . Garrison Access . | . . . . . . Total Hacks 63 | . 34 . 5 5 19 Successful 41 | . 23 . 5 2 11 Failed 21 | . 10 . . 3 8 Catastrophic 3 | . 1 . . . 2 Database Lockouts 1 | . 1 . . . . Manual 38 | . 24 . 1 4 9 Terminals 50 | . 28 . . 5 17 Fabricators . | . . . . . . Repair Stations 2 | . 2 . . . . Recycling Units 6 | . 4 . . . 2 Scanalyzers . | . . . . . . Garrison Access . | . . . . . . Terminal Hacks 22 | . 9 . 5 2 6 Record 4 | . . . 4 . . Robot Analysis 4 | . 2 . . 1 1 Prototype ID Bank 6 | . 5 . . . 1 Terminal Index 1 | . . . . . 1 Unreport Threat 1 | . 1 . . . . Locate Traps 3 | . 1 . . . 2 Hauler Manifests 1 | . . . . . 1 Zone Layout 1 | . . . . 1 . EX-Prototype ID Bank 1 | . . . 1 . . Fabricator Hacks . | . . . . . . Repair Station Hacks 2 | . 2 . . . . Scan Component 1 | . 1 . . . . Repair 1 | . 1 . . . . Recycling Unit Hacks 3 | . 2 . . . 1 Retrieve Components 3 | . 2 . . . 1 Scanalyzer . | . . . . . . Garrison Access Hacks . | . . . . . . Unauthorized Hacks 14 | . 10 . . . 4 Terminals 12 | . 9 . . . 3 Track 5 | . 5 . . . . Assimilate 1 | . 1 . . . . Botnet 4 | . 2 . . . 2 Operators 2 | . 1 . . . 1 Fabricators . | . . . . . . Repair Stations . | . . . . . . Recycling Units 2 | . 1 . . . 1 Reject 2 | . 1 . . . 1 Scanalyzers . | . . . . . . Garrison Access . | . . . . . . Data Cores Recovered . | . . . . . . Used . | . . . . . . Hacking Detections 16 | . 10 . . 1 5 Full Trace Events 1 | . . . . . 1 Feedback Events . | . . . . . . Feedback Blocked . | . . . . . . Robot Schematics Acquired . | . . . . . . Robots Built . | . . . . . . Authchips . | . . . . . . Time . | . . . . . . Total Robot Build Rating . | . . . . . . Part Schematics Acquired . | . . . . . . Parts Built . | . . . . . . Authchips . | . . . . . . Time . | . . . . . . Total Part Build Rating . | . . . . . . Parts Repaired 1 | . 1 . . . . Time 38 | . 38 . . . . Parts Recycled . | . . . . . . Recycled Matter . | . . . . . . Retrieved Matter . | . . . . . . Retrieved Components 30 | . 20 . . . 10 Parts Scanalyzed . | . . . . . . Part Schematics Acquired . | . . . . . . Parts Damaged . | . . . . . . Bothacking | -11 -10 -10 -10 -9 -8 ------------ Run | Scr Mat Min Exi Min Mat Used RIF Installer . | . . . . . . Robots Hacked . | . . . . . . Non-combat . | . . . . . . Combat . | . . . . . . Robot Hacks Applied . | . . . . . . Relay Couplers Released . | . . . . . . Fabnet Peak Effective % . | . . . . . . Robots Rewired . | . . . . . . Allies Hacked . | . . . . . . Hacks Repelled . | . . . . . . Allies | -11 -10 -10 -10 -9 -8 -------- Run | Scr Mat Min Exi Min Mat Total Allies 2 | . 1 1 . . . Largest Group 1 | . 1 1 1 1 . Highest-Rated Group 31 | . 10 31 31 31 . Highest-Rated Ally 31 | . 10 31 31 31 . Total Orders 2 | . 2 . . . . STAY 1 | . 1 . . . . FOLLOW 1 | . 1 . . . . Ally Attacks 18 | . . 13 . 5 . Total Damage 233 | . . 212 . 21 . Kills 3 | . . 3 . . . Allies Corrupted . | . . . . . . Allies Melted . | . . . . . . Intel | -11 -10 -10 -10 -9 -8 ------- Run | Scr Mat Min Exi Min Mat Robot Analysis Total 4 | . 2 . . 1 1 Derelict Logs Recovered 2 | . . 1 . 1 . Drone Launches . | . . . . . . Drone Recoveries . | . . . . . . Exploration | -11 -10 -10 -10 -9 -8 ------------- Run | Scr Mat Min Exi Min Mat Turns Passed 6381 | 152 2507 1015 392 1163 1152 Spaces Moved 3363 | 76 945 703 280 723 636 Core 6 | 6 . . . . . Treads 791 | 70 721 . . . . Legs . | . . . . . . Wheels 2566 | . 224 703 280 723 636 Hover . | . . . . . . Flight . | . . . . . . Fastest Speed 50 | 50 110 110 140 140 130 Average Speed 158 | 151 226 111 140 140 138 Slowest Speed 320 | 160 320 140 140 140 215 Overloaded Moves . | . . . . . . Propulsion Burnouts . | . . . . . . Robots Hopped . | . . . . . . Cave-ins Triggered . | . . . . . . Exploration Rate (%) 68 | 6 97 98 60 96 51 Regions Visited 5 Branch Regions 3 Pre-discovered Areas 1 | . . . 1 . . Known Exits Taken . | . . . . . . Unknown Exits Taken 5 | 1 1 1 1 1 . Scrap Searched 2 | . . 1 . 1 . Spaces Dug 7 | . 6 . . . 1 Terrain Destroyed 59 | . 6 6 . 11 36 Melee 7 | . 6 . . . 1 Projectile 35 | . . . . . 35 AOE 17 | . . 6 . 11 . Terrain Rammed . | . . . . . . Walls Destroyed . | . . . . . . Machines Disabled . | . . . . . . Actions | -11 -10 -10 -10 -9 -8 --------- Run | Scr Mat Min Exi Min Mat Total 4082 | 98 1184 901 280 844 775 Wait 405 | . 116 164 . 99 26 Move 3358 | 75 944 702 279 722 636 Hop . | . . . . . . Pick Up 67 | 9 28 8 1 3 18 Fast Attach 12 | 7 2 . . . 3 Attach 20 | . 5 2 . 1 12 Detach 1 | . 1 . . . . Swap 12 | . 8 2 . . 2 Drop 30 | 1 16 3 . 3 7 Fire 161 | 6 54 19 . 16 66 Melee 15 | . 10 . . . 5 Ram . | . . . . . . Kick . | . . . . . . Crush . | . . . . . . Escape Stasis . | . . . . . . Rewire . | . . . . . . Trap 1 | . . 1 . . . Miscellaneous . | . . . . . . Route ------- -11/Scrapyard -10/Materials (discovered 5 exits: [*Mat x3] / [*Min x2]) -10/Mines (discovered 3 exits: [*Mat x2] / *Exi) -10/Exiles -9/Mines -8/Materials (discovered 3 exits: *Fac x3) History --------- Turn | Location | Event 17 | -11/Scrapyard | Discovered new exit (range 14) 153 | -11/Scrapyard | Entered Materials 306 | -10/Materials | Build established: Mutant 680 | -10/Materials | Discovered new exit (range 9) 699 | -10/Materials | Central database locked down 912 | -10/Materials | Repaired Imp. Terrain Scanner 1088 | -10/Materials | Discovered new exit (range 16) 1498 | -10/Materials | Discovered new exit (range 8) 1892 | -10/Materials | Discovered new exit (range 8) 2445 | -10/Materials | Discovered new exit (range 15) 2660 | -10/Materials | Entered Mines 2754 | -10/Mines | Discovered new exit (range 3) 2832 | -10/Mines | Found a hidden stash of uninstalled traps 2858 | -10/Mines | Core integrity fell below 50% 2883 | -10/Mines | Deemed a non-threat by the Exiles lab entrance 2883 | -10/Mines | Discovered new exit (range 5) 2923 | -10/Mines | Learned location of 1 exit from Materials 3239 | -10/Mines | Discovered new exit (range 4) 3260 | -10/Mines | Met a Derelict testing a Signal Generator 3430 | -10/Mines | Core integrity fell below 20% 3675 | -10/Mines | Entered Exiles 3675 | -10/Exiles | Accompanied by 1 ally 3712 | -10/Exiles | Met 8R-AWN 3737 | -10/Exiles | Met EX-HEX 3776 | -10/Exiles | Met EX-BIN 3824 | -10/Exiles | Met EX-DEC 3829 | -10/Exiles | Learned location of Zion (-7) 3871 | -10/Exiles | Aligned with FarCom system 3873 | -10/Exiles | Given EX-Vault access code 3908 | -10/Exiles | Opened EX-Vault 3920 | -10/Exiles | Found Gui. Plasma Cannon 3951 | -10/Exiles | Warned to stay clear of 0b10 Research branches 4049 | -10/Exiles | Discovered new exit (range 14) 4067 | -10/Exiles | Left Exiles lab with Gui. Plasma Cannon 4067 | -10/Exiles | Entered Mines 4067 | -9/Mines | Accompanied by 1 ally 4110 | -9/Mines | Learned Materials stockpile data 4380 | -9/Mines | A weapon hastily lodged in a ceiling crevice suddenly fell to the ground 5224 | -9/Mines | Discovered new exit (range 5) 5230 | -9/Mines | Entered Materials 5230 | -8/Materials | Evolved 4 slots: Utility x4 5231 | -8/Materials | Identified exit to Factory 5358 | -8/Materials | Lost 5 parts (1p2n2w) 5462 | -8/Materials | Destroyed 7 combat bots 5575 | -8/Materials | Discovered exit to Factory (range 11) 5783 | -8/Materials | Build established: Skirmisher 6000 | -8/Materials | Lost 4 parts (1p1n1u1w) 6102 | -8/Materials | Discovered exit to Factory (range 5) 6382 | -8/Materials | Self-destructed Last Messages --------------- 06331_ A-02 Transporter system terminally corrupted. 06334_ Dropped Machine Analyzer. 06336_ Acquired Machine Analyzer. 06344_ Connecting with Terminal... >>Manifests Retrieving manifest data... Found 3 haulers: A-02 Transporter 6x Imp. Flight Unit (1 escort) A-02 Transporter 1x Matter (95) 2x Titanium Leg A-02 Transporter 6x Field Laser 06344_ ALERT: Suspicious activity at Terminal M004. Dispatching Investigation squad. 06350_ Acquired 10 matter. 06366_ Sneak attack on A-02 Transporter. 06366_ A-02 Transporter destroyed. Map ----- +----------------------------------------------------+ | | | | | | | | | | | | | | | | | | | | | | | ??????????#?#???##############??#?#??????????????? | | ???????????#?#?## T ##??#???????????????? | | ??????????#?#?#?# """ #??##???????????????? | | ??????? #?????#?# ! """ ##?#?????#????#?????? | | ????????????????# """ #??###?####?#?#???#?? | | ????????????###?#= !!! ##?####??#?#?###????? | | ??????"??#?????########+###########?##?????????#?? | | ???????????###########!%!######?##?######?##???#?? | | ????????##?# ; ! ######??###?#?#?????????? | | ??????????## + [[#??####?##?#????????? | | ????????##?# # [[##########?##?###?#?# | | ?????????#?# # = ==#######?###???????#?? | | ??????????############ !%% ==###########????####?# | | ?????????? ? ?+ =t |##################### | | ?????????" ? ######## @ ||###?# # # ! | | ????????""" ? ##?##?## g #######?# # < # | | ?????????"" ??#?#?#?## g ######### # # """ | | ?????????"" ##??#?## #### # + """ | | ?????????"? ? ?##??### g #### # # """ | | ??????????? ?#?##?## #### + # | | ????????? ? ? ######## ## ##?# # ##### | | ???????#???#?#???## ## #### # #?# | | ????????#????#?#??#! ]]]]## #### # ## | | ??????????#?#???#?#!!]]]]## #?## # + | | ????????????###?########### #### #### # | | ??????????? ??#??#??####### ##?###+######## #### | | ??????????????###?######### ###### #??##### #### | | ?????????? #?########??# g ##### ###?## ## | | ???????????? #??#?######## ##?## ###??# ## | | ???????????? + ##### ##?#?# #? | | ?????????????#??########## ##?## ###### ## | | ?????????? ? ?###?######## % %##### ###### ## | | ???????????? ???###?########%####### ####### ##? | | ???????????????#?##?# #%##### ##### ### | | ????????????#?##?#?## # ##### "" ### | | ???????????????#?#?## """ + T #?# | | ??????????#??####???# """ # ##### % #?# | | ?????????????#?###### """ #%##### ######+#### | | ??????????????##?#### # ###### ### # | +----------------------------------------------------+ Best States ------------- Heat Dissipation 45 Energy Generation 12 Energy Capacity 265 Matter Stores 300 Matter Capacity 300 Sight Range 16 Terrain Scan Range 16 Terrain Scan Density 85 Armor Coverage 150 Evasion (%) 40 Recoil Reduction 2 Offensive Hacking 10 Item Schematics ----------------- None Robot Schematics ------------------ None Fabricated ------------ Nothing Alien Tech Used ----------------- None Achievements -------------- None Challenges ------------ None Game ------ Seed ShockUtilityWarhead Manual? 0 Play Time 00:42:51 Cumulative 323.4 hours Start 2022.05.02 @ 14:56:06 End 2022.05.02 @ 20:59:09 Sessions 3 Manual Loads 0 Difficulty Rogue Special Mode None Game No. 265 Rogue 265 Adventurer 0 Explorer 0 Win Type - Total 0 Types 0/0/0/0/0/0/0/0/0 Lore% 56 Gallery% 61 Achievement% 44 Wizard Run 0 Options --------- ASCII 0 Keyboard 0 Movement Mouse Keybinds 0 Fullscreen 1 Font 16/SmallcapsGlow Map View 75x55 Tactical HUD 1 Map Filters NONE Filters NONE Steam 1 RUN: be1d4f15-0659-4d21-8a00-9a388a601afb